bitfinex/quotes_ETHUSD_20251010
["timestamp","ask_amount","ask_price","bid_price","bid_amount"]
[1760130918272,3.60779831,3761.5,3741.4,5.352]
[1760130918273,0.29671523,3752.4,3741.4,5.352]
[1760130918474,0.4435,3754.1,3753.7,0.01787692]
[1760130918768,0.1362871,3757.7,3754.1,0.36230354]
[1760130919071,0.082448,3774.0,3762.0,2.65814571]
[1760130919276,2.65005962,3773.5,3766.0,0.31486565]
[1760130919462,0.2294,3778.2,3761.9,5.44022229]
[1760130919463,0.082448,3777.5,3767.3,4.15417144]
[1760130919634,2.64697318,3777.9,3769.6,1.36729392]
[1760130919839,2.64697318,3777.9,3765.7,0.50046785]
[1760130919840,0.1356232,3778.1,3772.7,2.65057654]
[1760130920037,4.666,3783.8,3773.6,1.39752617]
[1760130920241,0.79409405,3786.5,3776.1,2.78]
[1760130920481,0.01,4382.9,3786.1,5.346]
[1760130920482,1.39862535,3802.7,3786.1,5.346]
[1760130920676,1.39862535,3802.7,3783.4,1.37519457]
[1760130920677,0.08056297,3797.9,3792.3,0.1355818]
[1760130920885,0.23908412,3799.1,3792.3,0.1355818]
[1760130921174,2.63610285,3793.5,3788.0,5.342]
[1760130921338,0.15695953,3788.0,3780.4,0.00199]
[1760130921534,14.767,3787.8,3778.7,5.342]
[1760130921772,2.6437648,3782.5,3778.1,5.342]
[1760130921973,13.408,3783.7,3773.9,0.00199]
[1760130922173,30.0,3781.1,3767.2,5.3352]
[1760130922374,10.0,3780.8,3770.6,2.65208353]
[1760130922540,0.53528821,3781.0,3770.8,2.65195503]
[1760130922748,0.00199,3781.1,3773.7,6.68874793]
[1760130922943,7.254,3784.6,3773.8,1.20041229]
[1760130923144,2.64236186,3784.5,3773.9,0.068]
[1760130923462,8.043,3784.8,3774.0,0.35376666]
[1760130923648,8.043,3784.8,3774.1,0.29958556]
[1760130923649,13.335,3784.7,3774.1,0.29958556]
[1760130923860,1.31748936,3784.3,3774.2,0.33038683]
[1760130924077,5.803,3786.6,3775.5,5.332]
[1760130924265,5.803,3786.6,3775.6,0.40992135]
[1760130924266,13.199,3786.6,3775.6,0.40992135]
[1760130924444,0.99999999,3791.6,3775.7,0.69797227]
[1760130924643,14.10767071,3789.6,3777.6,3.199]
[1760130924843,14.10767071,3789.6,3777.0,5.33]
[1760130924844,0.001,3781.1,3777.8,18.671329]
[1760130925074,2.64023842,3787.6,3777.9,0.24557227]
[1760130925277,0.4435,3788.4,3778.3,18.671329]
[1760130925574,0.001,3781.5,3778.4,0.26828489]
[1760130925776,28.62807376,3790.1,3778.5,19.123729]
[1760130925986,2.64309954,3783.5,3778.5,0.7675564]
[1760130926169,1.39984237,3783.9,3774.5,0.4524]
[1760130926395,5.538,3786.9,3774.5,0.4524]
[1760130926573,0.99999999,3786.6,3774.6,5.325]
[1760130926749,5.325,3786.5,3774.7,0.24673811]
[1760130926948,30.0,3786.2,3774.8,0.27188417]
[1760130927273,1.38319507,3785.9,3774.8,0.27188417]
[1760130927454,30.0,3782.8,3770.9,0.4524]
[1760130927643,16.321,3779.4,3768.7,0.4524]
[1760130927848,30.0,3778.8,3768.7,0.4524]
[1760130928086,30.0,3778.8,3764.7,1.32586507]
[1760130928087,2.65199495,3770.8,3766.3,5.322]
[1760130928245,1.30777989,3778.4,3768.8,0.75309531]
[1760130928447,1.36307385,3785.5,3772.4,2.65080987]
[1760130928646,5.321,3781.8,3771.3,0.23458698]
[1760130928859,30.0,3780.9,3767.5,0.4524]
[1760130929076,10.0,3780.8,3770.3,5.321]
[1760130929285,5.32,3783.4,3772.9,5.32]
[1760130929484,5.32,3785.0,3773.0,0.95478223]
[1760130929782,1.39013133,3788.2,3773.0,0.95478223]
[1760130929783,2.64221905,3784.7,3776.0,2.766]
[1760130929969,8.223,3784.5,3776.1,0.26238685]
[1760130930185,8.223,3784.5,3772.6,2.65062521]
[1760130930186,2.64712048,3777.7,3772.7,0.24052128]
[1760130930372,2.64712048,3777.7,3770.7,5.319]
[1760130930373,2.64713565,3777.7,3770.7,5.319]
[1760130930574,0.4435,3778.8,3770.8,10.101]
[1760130930880,5.318,3782.4,3770.9,0.99431179]
[1760130931103,5.318,3783.3,3771.0,0.69455]
[1760130931262,2.64236047,3784.5,3774.1,2.64962823]
[1760130931463,2.64588593,3779.5,3774.3,1.3963084]
[1760130931694,2.64588593,3779.5,3774.2,9.85630611]
[1760130931695,2.64550264,3780.0,3774.2,1.3877319]
[1760130931864,30.0,3779.8,3770.4,1.36512027]
[1760130932064,30.0,3779.8,3769.6,0.4524]
[1760130932065,27.771365,3780.6,3769.7,1.39010068]
[1760130932267,27.771365,3780.6,3768.2,0.32133814]
[1760130932268,2.64516885,3780.5,3768.2,0.32133814]
[1760130932462,27.771365,3776.3,3764.6,5.316]
[1760130932807,1.31069372,3774.0,3761.1,5.316]
[1760130933108,1.30266255,3771.4,3761.9,0.79663607]
[1760130933390,27.771365,3771.2,3762.0,0.28642147]
[1760130933560,2.764,3774.6,3762.1,5.316]
[1760130933766,26.41597,3774.4,3762.2,3.56814793]
[1760130933965,2.57297068,3771.0,3762.4,1.31069588]
[1760130934194,10.0,3771.0,3762.4,1.31069588]
[1760130934364,5.316,3767.5,3754.5,1.35210015]
[1760130934568,2.65769347,3762.7,3752.9,5.316]
[1760130934873,5.316,3764.8,3755.0,0.4524]
[1760130935206,9.112,3764.6,3755.1,5.48522156]
[1760130935406,25.687912,3767.3,3755.2,5.316]
[1760130935711,25.687912,3761.6,3749.6,1.23]
[1760130935895,2.765,3763.9,3749.6,1.23]
[1760130935896,25.687912,3759.2,3749.6,1.23]
[1760130936214,7.975,3761.5,3749.6,1.23]
[1760130936215,2.66566378,3751.5,3749.6,1.23]
[1760130936418,25.687912,3755.9,3750.0,0.31240263]
[1760130936718,2.66684733,3749.8,3749.6,1.23]
[1760130936876,5.95023567,3749.2,3749.1,1e-08]
[1760130937079,2.66951414,3746.0,3745.9,0.81255711]
[1760130937421,17.289,3749.2,3739.0,0.4524]
[1760130937422,25.687912,3747.9,3739.0,0.4524]
[1760130937620,2.66832825,3747.7,3740.7,0.19384327]
[1760130937853,2.6647338,3752.8,3740.8,0.4524]
[1760130938061,1.35931655,3751.0,3741.4,5.322]
[1760130938220,2.66776424,3748.5,3741.5,1.19799212]
[1760130938421,2.66778733,3748.5,3748.0,0.137]
[1760130938624,19.824,3750.9,3742.0,0.27345419]
[1760130938841,0.01,4378.9,3736.9,1.30408607]
[1760130938842,2.67251507,3741.8,3738.7,5.325]
[1760130939038,2.67251507,3741.8,3733.0,28.01135335]
[1760130939039,13.262,3744.2,3733.6,0.4524]
[1760130939360,13.262,3744.2,3733.0,25.24235335]
[1760130939361,2.778,3741.1,3733.0,25.24235335]
[1760130939573,25.687912,3740.9,3733.0,13.07651]
[1760130939713,10.0,3740.8,3733.1,0.24578858]
[1760130939911,5.327,3740.4,3733.0,13.07651]
[1760130940155,5.327,3740.4,3732.0,0.57126317]
[1760130940156,2.68103702,3729.9,3725.1,5.329]
[1760130940371,12.67866709,3733.2,3725.1,5.329]
[1760130940372,2.67866709,3733.2,3729.8,1.1985]
[1760130940510,25.687912,3738.7,3729.8,1.1985]
[1760130940710,2.67813598,3734.0,3729.8,1.1985]
[1760130940906,9.808,3729.8,3724.8,1.23]
[1760130941110,2.772,3734.5,3715.0,135.0]
[1760130941111,1.35140762,3729.5,3719.3,1.32993342]
[1760130941412,5.587,3728.0,3721.8,1.2278]
[1760130941611,0.80890987,3729.7,3721.8,1.2278]
[1760130941933,25.687912,3730.0,3721.8,1.2278]
[1760130942108,25.687912,3730.0,3723.5,11.86198862]
[1760130942315,0.13717129,3727.9,3723.6,0.81090211]
[1760130942510,10.0,3736.9,3723.6,0.81090211]
[1760130942511,25.687912,3745.2,3730.4,0.13717129]
[1760130942858,25.687912,3745.2,3723.6,0.91481017]
[1760130942859,5.34,3754.9,3736.7,2.775]
[1760130943042,2.66886262,3747.0,3736.8,0.4524]
[1760130943211,12.31597621,3746.8,3736.6,0.31880319]
[1760130943418,0.42841888,3746.9,3737.2,5.342]
[1760130943616,0.42841888,3746.9,3736.7,0.5944]
[1760130943617,0.14574813,3748.0,3740.3,5.342]
[1760130943840,0.14574813,3748.0,3738.2,2.778]
[1760130943841,0.4435,3750.8,3743.3,5.342]
[1760130944027,25.687912,3753.4,3743.4,6.394]
[1760130944233,25.687912,3753.1,3736.6,2.778]
[1760130944439,2.778,3753.3,3736.4,0.69733644]
[1760130944440,1.32002252,3752.4,3736.4,0.69733644]
[1760130944637,1.30602917,3745.3,3736.4,0.69733644]
[1760130944838,10.0,3751.1,3736.4,0.69733644]
[1760130944839,2.67015567,3745.1,3736.4,0.69733644]
[1760130945153,5.343,3748.9,3737.9,2.778]
[1760130945351,25.687912,3748.7,3737.4,5.55241941]
[1760130945662,25.687912,3746.8,3736.4,0.69733644]
[1760130945817,25.687912,3746.4,3736.4,0.69733644]
[1760130946017,5.345,3763.6,3747.3,0.71834841]
[1760130946238,30.0,3760.5,3747.4,5.345]
[1760130946442,10.796,3761.6,3747.5,5.345]
[1760130946443,30.0,3758.8,3747.5,5.345]
[1760130946646,25.614,3758.4,3746.3,0.4748]
[1760130946843,1.38417804,3757.9,3744.2,5.345]
[1760130947027,30.0,3756.5,3744.3,5.346]
[1760130947351,13.634,3756.3,3744.4,0.26407919]
[1760130947517,22.594,3753.2,3742.9,0.23416853]
[1760130947849,0.4422,3753.1,3743.0,6.18066661]
[1760130948049,2.66593928,3751.1,3737.0,0.4748]
[1760130948251,2.66593928,3751.1,3728.9,0.213]
[1760130948252,1.35954759,3745.4,3737.8,5.346]
[1760130948550,31.36488091,3751.9,3740.5,8.019]
[1760130948735,30.0,3751.9,3739.9,5.346]
[1760130949051,10.863,3751.7,3741.0,0.4553]
[1760130949271,2.66567845,3751.4,3742.1,5.347]
[1760130949553,5.56,3751.3,3735.7,11.86198862]
[1760130949752,30.0,3746.9,3735.7,11.86198862]
[1760130949955,0.39041881,3747.1,3737.0,13.64373187]
[1760130950151,2.78,3758.2,3737.0,13.64373187]
[1760130950152,0.8045419,3751.2,3747.7,0.44531955]
[1760130950366,0.8045419,3751.2,3746.9,0.43022377]
[1760130950367,2.66439305,3753.2,3746.5,0.39859134]
[1760130950572,2.66439305,3753.2,3741.4,1.33221325]
[1760130950573,6.064,3753.1,3747.0,0.39148301]
[1760130950868,6.064,3753.1,3743.5,0.779]
[1760130950869,2.781,3755.7,3741.8,2.761]
[1760130951024,30.473,3755.6,3745.5,0.32564348]
[1760130951219,1.3957106,3753.5,3743.8,4.10717355]
[1760130951437,1.3957106,3753.5,3741.9,0.22006437]
[1760130951438,1.37800318,3753.3,3743.3,5.298]
[1760130951637,0.473,3753.4,3741.8,1.986]
[1760130951638,1.81523089,3753.4,3743.4,5.64357542]
[1760130951838,30.0,3753.2,3737.1,1.32688798]
[1760130952048,2.781,3750.5,3735.7,12.01589847]
[1760130952249,13.90843735,3753.1,3735.7,12.01589847]
[1760130952250,1.38627354,3747.0,3735.7,11.86198862]
[1760130952573,0.60721928,3767.3,3747.9,0.43290156]
[1760130952772,0.60721928,3767.3,3735.8,0.30566885]
[1760130952773,0.80445021,3751.2,3746.4,0.23703593]
[1760130952980,2.781,3751.9,3740.6,0.4553]
[1760130953131,2.781,3751.9,3738.1,2.781]
[1760130953132,2.74444767,3752.5,3740.7,6.13372818]
[1760130953332,5.35065569,3752.4,3740.8,0.4553]
[1760130953533,0.00165569,3752.4,3743.2,5.349]
[1760130953843,1.187,3752.7,3743.3,0.77269809]
[1760130954030,2.781,3758.3,3735.7,11.86400862]
[1760130954031,30.0,3752.1,3735.7,11.86400862]
[1760130954234,0.2174669,3755.4,3735.7,11.86400862]
[1760130954235,1.33404509,3763.9,3752.5,1.07323145]
[1760130954463,30.0,3758.8,3747.3,0.37518014]
[1760130954632,30.0,3758.6,3744.4,0.23634681]
[1760130954838,5.349,3756.1,3744.5,0.4553]
[1760130955146,1.30341918,3755.6,3744.6,0.23234615]
[1760130955331,5.349,3756.1,3744.5,0.4553]
[1760130955332,1.3716151,3755.2,3744.5,0.4553]
[1760130955667,1.31997269,3753.7,3739.4,5.348]
[1760130955830,1.35525224,3753.0,3740.9,0.19994948]
[1760130956034,1.39044065,3752.7,3740.1,0.21810458]
[1760130956262,1.32824241,3752.3,3740.0,5.348]
[1760130956495,2.781,3752.9,3739.4,0.2352839]
[1760130956496,2.433,3747.7,3739.4,0.2352839]
[1760130956637,1.38096069,3747.8,3737.3,1.524]
[1760130956638,5.348,3747.0,3737.3,1.524]
[1760130956831,5.667,3747.6,3736.5,0.38134081]
[1760130956832,5.348,3745.2,3736.5,0.38134081]
[1760130957166,2.781,3747.6,3729.8,0.00202]
[1760130957167,1.36780603,3741.3,3732.3,5.348]
[1760130957367,30.0,3740.8,3731.3,5.349]
[1760130957541,1.31846475,3743.5,3731.4,0.4553]
[1760130957744,13.612,3743.3,3731.5,0.43471918]
[1760130958066,2.782,3748.5,3731.5,0.43471918]
[1760130958067,6.061,3744.8,3733.8,1.579183]
[1760130958363,1.39521308,3744.0,3733.9,1.16327434]
[1760130958532,1.30001489,3742.9,3734.0,0.20140622]
[1760130958734,2.699,3743.9,3731.1,0.4553]
[1760130958735,1.30529673,3741.9,3731.1,0.4553]
[1760130958935,2.67702991,3735.5,3729.2,0.4553]
[1760130959165,2.782,3740.7,3729.7,0.28432512]
[1760130959335,2.67602855,3736.9,3729.8,0.4553]
[1760130959538,5.351,3740.7,3729.9,0.28285012]
[1760130959744,1.31995104,3750.3,3734.5,5.352]
[1760130959959,30.0,3746.3,3734.6,0.91375995]
[1760130960169,30.0,3746.1,3734.6,0.72154163]
[1760130960368,1.36773882,3746.1,3734.7,3.2443]
[1760130960538,1.33100042,3745.4,3734.8,0.4553]
[1760130960735,10.811,3746.2,3734.8,0.97878798]
[1760130960934,2.66922912,3746.4,3737.1,5.353]
[1760130961138,5.354,3749.0,3737.2,6.10405104]
[1760130961367,2.66965668,3745.8,3737.3,0.4553]
[1760130961568,2.66979923,3745.6,3737.4,0.47172218]
[1760130961769,1.37318088,3745.2,3731.3,0.99999999]
[1760130962070,1.36438412,3743.3,3733.3,1.23]
[1760130962272,30.0,3741.8,3734.6,0.002]
[1760130962473,7.43703577,3741.7,3734.6,0.00037066]
[1760130962671,30.0,3740.9,3734.6,0.00037066]
[1760130962877,2.67741929,3735.0,3734.6,0.00037066]
[1760130963073,2.67759123,3734.7,3734.6,0.00037066]
[1760130963241,7.504,3734.6,3729.8,1.23]
[1760130963439,1.35305203,3733.8,3729.8,1.23]
[1760130963669,5.355,3734.7,3729.8,1.23]
[1760130963883,30.0,3734.5,3729.8,1.23]
[1760130964043,10.14,3734.4,3729.8,1.23]
[1760130964242,5.355,3734.7,3723.2,5.356]
[1760130964243,30.0,3734.1,3723.2,5.356]
[1760130964545,30.0,3734.1,3721.3,0.003]
[1760130964546,30.0,3731.9,3722.5,0.23033838]
[1760130964744,2.68092218,3730.1,3721.7,0.25619685]
[1760130964958,2.68092218,3730.1,3721.3,0.003]
[1760130964959,2.68485206,3724.6,3721.8,2.4577]
[1760130965249,2.68889486,3719.0,3714.4,0.00203]
[1760130965451,2.68889486,3719.0,3711.5,0.4553]
[1760130965452,1.32217027,3718.5,3715.2,0.64704055]
[1760130965664,2.894,3715.9,3715.2,0.64494055]
[1760130965867,0.0898,3715.8,3715.2,1e-08]
[1760130966067,0.0898,3715.8,3708.5,10.93390134]
[1760130966068,1.32016566,3715.5,3708.5,10.93390134]
[1760130966265,0.70215461,3716.0,3704.1,0.58368194]
[1760130966266,30.0,3710.2,3704.1,0.58368194]
[1760130966481,8.3626,3710.1,3704.1,0.58368194]
[1760130966664,32.167549,3710.0,3699.8,0.25968755]
[1760130966865,24.128549,3709.9,3700.9,0.81256189]
[1760130967168,24.128549,3706.7,3691.7,1.31243224]
[1760130967480,24.128549,3706.7,3675.9,3.95041644]
[1760130967481,2.70775229,3693.1,3690.6,0.19964051]
[1760130967683,30.0,3692.9,3686.8,1.30077941]
[1760130967979,0.0956,3692.8,3685.6,0.21113724]
[1760130968182,30.0,3692.5,3683.2,14.01592411]
[1760130968495,1.002,3692.8,3680.6,0.99999999]
[1760130968496,1.37942864,3692.1,3680.6,0.99999999]
[1760130968793,30.0,3691.9,3680.8,0.31103242]
[1760130968992,30.0,3691.9,3681.1,0.9400414]
[1760130969157,0.81648649,3692.7,3682.2,2.795]
[1760130969479,5.567,3696.8,3687.4,5.378]
[1760130969690,8.058,3699.6,3683.2,1.34315446]
[1760130969691,30.0,3693.5,3687.1,0.28159969]
[1760130969980,30.0,3693.5,3683.2,1.34315446]
[1760130969981,4.784,3691.8,3686.8,0.22019487]
[1760130970156,0.1429,3686.9,3676.1,5.76687765]
[1760130970358,0.1429,3686.9,3674.2,1.30628612]
[1760130970359,30.28319487,3686.8,3674.2,1.30628612]
[1760130970563,5.384,3683.0,3674.1,1.39652849]
[1760130970886,1.39272668,3679.7,3669.1,2.72546103]
[1760130971097,30.0,3679.5,3669.8,0.00871214]
[1760130971277,30.0,3679.5,3668.8,16.22544383]
[1760130971278,1.3319222,3679.2,3668.8,16.22544383]
[1760130971577,2.893,3679.1,3668.9,0.25611186]
[1760130971777,2.893,3679.1,3663.9,1.91148243]
[1760130971778,30.0,3675.4,3663.9,1.91148243]
[1760130971980,2.72717355,3666.8,3666.7,1e-08]
[1760130972146,10.0,3668.8,3666.2,1e-08]
[1760130972344,1.3532297,3676.6,3666.2,1e-08]
[1760130972345,1.35093166,3686.8,3666.2,1e-08]
[1760130972545,0.0898,3671.3,3666.2,1e-08]
[1760130972788,10.0,3674.6,3666.2,1e-08]
[1760130972979,30.0,3671.1,3666.2,1e-08]
[1760130973156,30.0,3670.9,3666.2,1e-08]
[1760130973359,30.0,3670.9,3660.6,2.804]
[1760130973663,0.2094,3661.1,3657.6,0.12788406]
[1760130973872,0.2094,3661.1,3655.6,1.46989292]
[1760130973873,0.2064,3661.1,3655.6,1.46989292]
[1760130974182,30.0,3660.8,3648.5,2.7408184]
[1760130974389,8.4,3661.0,3647.2,2.74447036]
[1760130974390,30.0,3655.0,3647.2,2.74447036]
[1760130974576,0.096,3663.9,3647.4,2.811]
[1760130974757,0.198,3666.8,3647.5,8.71422317]
[1760130974758,30.0,3663.7,3647.5,8.71422317]
[1760130974961,8.15,3647.5,3647.4,0.00876564]
[1760130975160,1.34091615,3659.5,3647.4,8.222]
[1760130975358,1.39332648,3659.2,3643.6,0.19974437]
[1760130975559,0.1019,3677.7,3659.1,2.814]
[1760130975856,5.417,3690.4,3673.0,2.814]
[1760130976177,5.417,3690.4,3660.8,0.216]
[1760130976178,1.34080931,3688.3,3673.6,0.99999999]
[1760130976355,30.0,3689.3,3672.7,2.818]
[1760130976558,1.30292944,3688.9,3674.8,0.99999999]
[1760130976771,2.82,3688.8,3679.0,0.99999999]
[1760130976959,22.5,3687.9,3675.2,0.148192]
[1760130977159,2.711746,3687.7,3673.8,0.99999999]
[1760130977469,1.36981269,3680.7,3668.5,0.99999999]
[1760130977668,1.36851331,3680.3,3668.9,0.39784481]
[1760130977879,10.959,3680.2,3668.6,0.25114615]
[1760130978083,22.42560883,3684.9,3670.5,2.823]
[1760130978376,22.42560883,3684.9,3666.3,1.3624133]
[1760130978377,3.981,3681.7,3670.7,2.72426711]
[1760130978582,0.5,3681.8,3671.7,5.43]
[1760130978748,1.38542355,3681.3,3665.7,0.99999999]
[1760130978948,0.2142,3681.7,3664.2,0.25126371]
[1760130978949,5.43,3677.8,3664.2,0.25126371]
[1760130979176,2.824,3673.3,3657.0,1.36953769]
[1760130979373,30.0,3669.8,3656.7,1.39719173]
[1760130979679,1.33949569,3668.0,3650.7,2.73914311]
[1760130979868,2.72927328,3664.0,3652.0,0.4285]
[1760130980074,1.0,3670.9,3666.0,0.32210685]
[1760130980302,0.20300974,3705.4,3675.0,1.36974046]
[1760130980503,30.0,3699.4,3675.2,1.57828636]
[1760130980711,3.2556,3699.3,3686.9,2.71225543]
[1760130980875,30.0,3699.2,3685.6,5.436]
[1760130981205,30.0,3696.0,3683.7,0.2265]
[1760130981372,30.0,3696.0,3679.8,1.3342327]
[1760130981373,10.982,3695.9,3682.3,0.74774898]
[1760130981578,2.70994439,3690.2,3683.0,0.51330804]
[1760130981808,4.60714844,3695.8,3674.9,0.00201]
[1760130981809,0.33181299,3691.7,3682.9,2.828]
[1760130981994,0.002,3692.8,3683.0,29.98909781]
[1760130982184,1.33609673,3692.7,3683.3,29.98909781]
[1760130982382,0.002,3692.8,3683.2,2.7150304]
[1760130982715,30.0,3692.5,3677.5,2.828]
[1760130983005,30.0,3692.5,3669.7,0.217]
[1760130983006,30.0,3687.8,3672.8,5.438]
[1760130983214,30.0,3687.6,3673.9,0.96882168]
[1760130983413,5.438,3687.9,3672.9,7.22]
[1760130983414,2.71439709,3684.1,3677.9,5.438]
[1760130983575,1.32707867,3705.8,3678.2,1.38520956]
[1760130983778,1.32707867,3705.8,3678.0,0.4285]
[1760130983779,4.887,3705.6,3695.6,2.70591908]
[1760130984105,6.975,3706.7,3696.0,2.828]
[1760130984273,0.32494766,3705.5,3701.0,2.70193865]
[1760130984475,0.32494766,3705.5,3696.1,3.2565]
[1760130984476,0.32494766,3705.5,3699.7,2.406]
[1760130984679,0.21759575,3706.8,3700.6,2.70226438]
[1760130985014,0.21759575,3706.8,3700.7,7.7225]
[1760130985174,12.019,3718.8,3703.2,5.438]
[1760130985372,5.72612864,3718.7,3703.5,5.40021972]
[1760130985586,5.72612864,3718.7,3703.4,0.96882168]
[1760130985587,0.38807474,3718.7,3709.3,5.438]
[1760130985875,0.80950247,3725.9,3714.7,2.827]
[1760130986111,5.434,3732.1,3716.2,5.23981289]
[1760130986312,2.826,3734.4,3718.1,5.434]
[1760130986313,1.33668325,3734.3,3718.1,5.434]
[1760130986619,5.434,3735.0,3721.0,2.68744961]
[1760130986620,1.36325,3729.2,3721.0,2.68744961]
[1760130986822,2.67800704,3734.2,3721.0,2.68744961]
[1760130986823,1.34715777,3731.4,3725.7,2.68400652]
[1760130986982,1.34715777,3731.4,3718.2,3.63652974]
[1760130986983,0.28775566,3731.3,3723.9,5.432]
[1760130987184,0.40302519,3731.3,3722.7,2.68622236]
[1760130987432,10.0,3736.2,3722.8,9.19779907]
[1760130987719,1.33512735,3736.6,3726.5,1.31492393]
[1760130987926,2.67263465,3741.7,3726.7,1.31235517]
[1760130988093,2.67263465,3741.7,3726.6,6.919]
[1760130988094,30.0,3741.3,3727.0,0.76453717]
[1760130988284,0.16668114,3734.6,3727.1,5.427]
[1760130988482,0.074,3737.7,3726.2,0.2265]
[1760130988701,30.0,3737.5,3725.8,1.36724645]
[1760130989036,30.0,3737.5,3710.8,0.216]
[1760130989037,0.28335362,3725.8,3712.3,3.8859]
[1760130989210,5.422,3723.4,3712.3,3.8859]
[1760130989385,18.595,3712.3,3701.2,0.01148]
[1760130989584,18.595,3712.3,3692.6,2.819]
[1760130989585,2.69308429,3713.3,3701.3,0.4285]
[1760130989886,0.21152765,3714.7,3705.3,5.418]
[1760130990119,10.0,3722.9,3711.0,2.817]
[1760130990286,2.68275641,3727.6,3711.0,2.817]
[1760130990287,0.4385,3727.1,3714.6,2.69204118]
[1760130990487,1.31031323,3726.8,3708.0,0.96882168]
[1760130990709,30.0,3720.1,3701.9,2.817]
[1760130990912,1.39655281,3719.9,3708.7,0.96882168]
[1760130991086,0.4385,3722.8,3712.5,0.96882168]
[1760130991295,6.688,3721.1,3712.6,1.13593094]
[1760130991514,0.4385,3722.8,3712.6,0.4285]
[1760130991715,10.0,3720.9,3710.1,1.68916529]
[1760130992025,7.622,3721.0,3706.2,0.4285]
[1760130992026,2.69379402,3712.3,3706.2,0.4285]
[1760130992230,2.69379402,3712.3,3705.9,0.96882168]
[1760130992231,10.179,3711.5,3705.9,0.96882168]
[1760130992416,10.179,3711.5,3696.7,1.31030544]
[1760130992417,0.4385,3715.1,3706.7,0.96882168]
[1760130992729,0.4385,3715.1,3704.5,5.415]
[1760130992730,30.0,3727.8,3710.4,2.695072]
[1760130992931,1.33372436,3727.9,3709.4,2.815]
[1760130992932,1.38571943,3727.5,3715.1,0.4385]
[1760130993231,5.413,3723.0,3715.2,0.25310598]
[1760130993550,13.664,3722.9,3712.8,0.4285]
[1760130993824,13.664,3722.9,3711.1,5.413]
[1760130993825,1.3717461,3722.6,3707.3,1.37619534]
[1760130994028,1.35809687,3719.2,3708.7,0.4285]
[1760130994238,1.35809687,3719.2,3707.2,0.80873651]
[1760130994239,2.69113808,3715.9,3707.2,0.96882168]
[1760130994388,2.69203009,3714.7,3707.2,0.96882168]
[1760130994591,10.0,3715.3,3707.2,0.96882168]
[1760130994799,25.672,3715.1,3705.5,0.96882168]
[1760130995118,25.672,3715.1,3704.4,1.337]
[1760130995119,2.69719249,3707.6,3705.2,0.96882168]
[1760130995439,0.2289,3715.5,3690.4,0.28306]
[1760130995440,30.0,3704.8,3690.4,0.28306]
[1760130995660,2.813,3708.4,3689.3,5.409]
[1760130995661,17.655,3702.4,3689.3,5.409]
[1760130995809,5.41,3698.8,3694.4,0.07946896]
[1760130996012,30.0,3694.3,3683.3,0.01164]
[1760130996227,2.813,3697.8,3675.3,3.0459]
[1760130996228,30.0,3688.5,3679.7,0.08091546]
[1760130996535,10.0,3688.5,3678.5,0.20617432]
[1760130996742,7.444,3678.5,3667.5,2.82469]
[1760130997038,1.31661584,3676.4,3672.8,0.81622103]
[1760130997348,13.9699,3678.4,3661.8,0.01171]
[1760130997349,1.32285015,3672.7,3661.8,0.01171]
[1760130997642,21.088,3669.3,3657.1,0.4285]
[1760130997871,21.088,3669.3,3654.5,0.00198]
[1760130997872,10.932,3669.2,3654.5,0.00198]
[1760130998018,26.078,3669.1,3657.2,0.14574813]
[1760130998323,0.2289,3657.3,3645.9,0.99999999]
[1760130998524,5.418,3652.4,3640.9,0.445]
[1760130998693,5.418,3652.4,3640.3,5.418]
[1760130998694,9.404,3649.4,3640.3,5.418]
[1760130998898,5.42,3655.0,3641.1,0.5706036]
[1760130999205,27.678,3668.9,3656.1,2.73510989]
[1760130999407,14.94752571,3668.9,3656.2,3.87463701]
[1760130999642,8.04873177,3669.0,3661.0,2.73143007]
[1760130999933,2.72811631,3665.6,3659.2,5.423]
[1760131000144,2.72811631,3665.6,3657.1,0.001]
[1760131000145,5.426,3665.5,3657.1,0.001]
[1760131000296,10.0,3657.6,3649.8,0.00198]
[1760131000497,0.47822669,3664.0,3649.9,6.20871013]
[1760131000734,1.39918533,3663.8,3650.0,0.4285]
[1760131000943,7.672,3664.2,3650.2,1.31760723]
[1760131001153,30.0,3659.0,3656.4,0.001]
[1760131001438,30.0,3659.0,3645.4,2.7431394]
[1760131001439,0.99999999,3655.1,3645.4,0.01182]
[1760131001735,0.99999999,3655.1,3641.8,0.28684]
[1760131001736,30.0,3650.2,3639.9,1.34352046]
[1760131001937,30.0,3650.2,3634.8,2.824]
[1760131001938,18.582,3642.7,3641.1,1.0285]
[1760131002120,2.7373174,3653.3,3647.3,2.74170936]
[1760131002325,8.04873177,3655.0,3648.4,2.74092752]
[1760131002509,10.0,3657.6,3647.4,0.72599607]
[1760131002510,30.0,3667.0,3654.4,0.35327577]
[1760131002717,30.0,3667.0,3654.1,2.73661146]
[1760131003034,21.786,3666.8,3654.5,100.0]
[1760131003330,1.37944221,3671.8,3654.5,100.0]
[1760131003331,0.4385,3675.9,3666.2,1.23]
[1760131003545,14.769,3674.5,3666.2,1.23]
[1760131003699,1.32698603,3672.2,3666.2,1.23]
[1760131004033,1.32698603,3672.2,3651.5,0.25991]
[1760131004034,2.83,3667.2,3651.5,0.25991]
[1760131004208,2.83,3667.2,3648.7,5.444]
[1760131004209,13.2685,3667.1,3651.6,0.387]
[1760131004415,0.04,3667.2,3655.6,1.23]
[1760131004617,0.04,3667.2,3655.7,0.9755]
[1760131004811,0.04,3667.2,3658.5,1.37319105]
[1760131005110,2.833,3677.0,3660.6,1.30522007]
[1760131005349,30.0,3676.8,3660.8,1.32798965]